{"text_format":"1","workbook":"xlsx","n_sheets":1,"sheets":["Лист1"],"not_rendered":{"charts":0,"images":0,"macros":0,"external_links":0,"defined_names":0,"comments":0,"pivot_tables":0},"unopened":[],"bounds":{"document_bytes":16777216,"sheet_cells":100000,"rows_first":2000,"rows_last":500,"rows_between":2000,"halvings":0,"cell_chars":16384,"cell_head_chars":4096},"cells_cut":0,"cells_raw":0,"read":"whole","date_system":"1900"}

{"sheet":"Лист1","index":0,"n_rows":37,"n_cols":3,"rows_kept":37,"cut":false,"hidden":false,"merged":[]}
["1 хлеб",null,{"$f":"IFERROR(VLOOKUP(ROW()&\" *\",A$1:A$999,1,),ROW())","v":"1 хлеб"}]
["2 вода",null,{"$f":"IFERROR(VLOOKUP(ROW()&\" *\",A$1:A$999,1,),ROW())","v":"2 вода"}]
["3 пиво",null,"3 пиво"]
["6 сок",null,4]
["8 квас",null,5]
["14 соль",null,"6 сок"]
["15 вино",null,7]
["21 сахар",null,"8 квас"]
[null,null,9]
[null,null,10]
[null,null,11]
[null,null,12]
[null,null,13]
[null,null,"14 соль"]
[null,null,"15 вино"]
[null,null,16]
[null,null,17]
[null,null,18]
[null,null,19]
[null,null,20]
[null,null,"21 сахар"]
[null,null,22]
[null,null,23]
[null,null,24]
[null,null,25]
[null,null,26]
[null,null,27]
[null,null,28]
[null,null,29]
[null,null,30]
[null,null,31]
[null,null,32]
[null,null,33]
[null,null,34]
[null,null,35]
[null,null,36]
[null,null,37]